bitfinex/quotes_SOLUSD_20251216
["timestamp","ask_amount","ask_price","bid_price","bid_amount"]
[1765896378020,16.33512997,128.29,128.25,0.71]
[1765896378219,13.24917279,128.27,128.22,13.24917279]
[1765896378396,13.24917279,128.26,128.22,9.51994492]
[1765896378716,13.24917279,128.26,128.22,0.71]
[1765896378887,13.24917279,128.23,128.18,7.80102617]
[1765896379092,13.24917279,128.22,128.18,0.71]
[1765896379295,8.54,128.26,128.21,13.24917279]
[1765896379296,13.24917279,128.25,128.21,13.24917279]
[1765896379524,7.79512997,128.29,128.23,13.24917279]
[1765896379811,13.24917279,128.28,128.24,0.71]
[1765896379988,21.04522798,128.27,128.21,7.79946481]
[1765896380196,7.79558229,128.28,128.23,22.05911771]
[1765896380390,8.49496867,128.29,128.24,0.71]
[1765896380585,7.79496867,128.29,128.25,13.95917279]
[1765896380899,13.24917279,128.28,128.22,0.71]
[1765896381115,13.94917279,128.27,128.22,13.95917279]
[1765896381312,13.24917279,128.26,128.22,0.71]
[1765896382116,21.5670912,128.26,128.2,13.95917279]
[1765896382324,22.46917279,128.28,128.24,0.71]
[1765896382615,36.50422887,128.28,128.22,13.24917279]
[1765896382822,8.49561023,128.28,128.24,13.24917279]
[1765896383003,0.7,128.28,128.25,0.71]
[1765896383408,13.24917279,128.29,128.25,0.71]
[1765896383634,21.04467538,128.28,128.24,0.71]
[1765896384186,13.94917279,128.27,128.22,26.29626399]
[1765896384422,13.24917279,128.29,128.25,13.95917279]
[1765896384622,13.24917279,128.29,128.21,13.95917279]
[1765896384623,0.7,128.29,128.21,13.95917279]
[1765896384919,40.32741969,128.3,128.23,13.24917279]
[1765896385119,13.24917279,128.25,128.2,8.52]
[1765896385421,8.52,128.27,128.21,13.95917279]
[1765896385617,13.24917279,128.25,128.22,0.71]
[1765896385791,9.22,128.27,128.22,0.71]
[1765896385998,13.24917279,128.25,128.22,0.71]
[1765896386319,21.0465856,128.25,128.21,8.50966489]
[1765896386525,21.0465856,128.25,128.21,0.71]
[1765896386816,13.24917279,128.24,128.19,16.6102654]
[1765896387015,13.24917279,128.23,128.18,30.28051874]
[1765896387191,13.24917279,128.22,128.18,0.71]
[1765896387590,27.99059019,128.25,128.18,21.760461]
[1765896387824,7.79741281,128.25,128.21,0.71]
[1765896388009,13.24917279,128.23,128.15,8.52]
[1765896388196,21.0479686,128.23,128.19,0.71]
[1765896388394,13.24917279,128.2,128.16,7.80252708]
[1765896388590,13.24917279,128.21,128.16,30.57164479]
[1765896388809,21.76917279,128.22,128.17,21.76108728]
[1765896389013,13.24917279,128.2,128.16,0.71]
[1765896389398,13.24917279,128.18,128.14,0.71]
[1765896389838,8.52,128.22,128.14,21.763109]
[1765896390025,8.52,128.22,128.12,13.0470912]
[1765896390026,13.24917279,128.17,128.12,13.95917279]
[1765896390206,21.05184006,128.17,128.12,21.76426729]
[1765896390403,13.24917279,128.15,128.09,20.22708573]
[1765896390631,7.80266727,128.17,128.09,0.71]
[1765896390829,8.52,128.14,128.08,0.71]
[1765896391033,8.52,128.14,128.1,13.24917279]
[1765896391237,8.52,128.14,128.11,0.71]
[1765896391436,13.24917279,128.13,128.09,0.71]
[1765896391614,13.24917279,128.13,128.06,32.56857255]
[1765896391615,13.24917279,128.11,128.06,7.80825076]
[1765896391819,13.24917279,128.11,128.06,21.05742355]
[1765896392013,13.24917279,128.11,128.07,0.71]
[1765896392221,7.80579733,128.11,128.07,21.7673691]
[1765896392434,7.80579733,128.11,128.08,0.71]
[1765896392905,7.80540656,128.12,128.08,0.71]
[1765896393136,8.50480363,128.13,128.08,13.95917279]
[1765896393434,7.80480363,128.13,128.09,0.71]
[1765896393656,21.05397642,128.13,128.08,0.7]
[1765896393841,21.05397642,128.13,128.09,0.7]
[1765896393842,13.24917279,128.13,128.09,0.7]
[1765896394142,7.80286747,128.16,128.12,0.72]
[1765896394344,21.78917279,128.17,128.13,0.72]
[1765896394515,16.3423215,128.17,128.14,0.72]
[1765896394715,29.59149429,128.17,128.13,0.72]
[1765896395135,16.3423215,128.17,128.14,0.72]
[1765896395328,29.59149429,128.17,128.12,21.7742119]
[1765896395523,8.15555187,128.16,128.07,13.0470912]
[1765896395727,8.15555187,128.14,128.1,0.72]
[1765896395918,8.15555187,128.13,128.09,7.8066297]
[1765896396127,15.96050604,128.13,128.09,7.8066297]
[1765896396322,15.96050604,128.13,128.09,8.5266297]
[1765896396735,7.80495417,128.13,128.1,0.72]
[1765896397135,7.80420107,128.14,128.1,8.52638641]
[1765896397348,8.15555187,128.13,128.1,0.72]
[1765896397548,8.15555187,128.12,128.08,7.80742513]
[1765896397736,9.25,128.13,128.08,0.72]
[1765896397937,8.15555187,128.11,128.07,22.57703612]
[1765896398132,8.51573833,128.12,128.07,8.52812755]
[1765896398445,8.54,128.13,128.09,8.87555187]
[1765896398646,15.95994944,128.14,128.1,0.72]
[1765896398851,15.95913354,128.15,128.11,0.72]
[1765896399034,8.15555187,128.14,128.11,0.72]
[1765896399232,8.15555187,128.14,128.09,8.87555187]
[1765896399744,8.15555187,128.13,128.09,0.72]
[1765896400045,8.15555187,128.14,128.1,7.80640124]
[1765896400228,13.0470912,128.17,128.12,0.72]
[1765896400561,35.46098267,128.18,128.14,0.72]
[1765896400770,8.15555187,128.15,128.11,0.72]
[1765896400922,7.80160806,128.18,128.13,8.15555187]
[1765896401119,8.15555187,128.19,128.15,0.72]
[1765896401320,8.15555187,128.19,128.15,8.87555187]
[1765896401545,8.15555187,128.2,128.15,8.15555187]
[1765896401757,7.80039776,128.2,128.14,0.72]
[1765896402056,8.15555187,128.18,128.14,0.72]
[1765896402224,27.30117779,128.2,128.14,8.5236308]
[1765896402225,7.8009205,128.19,128.14,8.5236308]
[1765896402424,8.15555187,128.18,128.14,16.67918267]
[1765896402639,8.15555187,128.18,128.15,0.72]
[1765896402953,8.15555187,128.18,128.14,8.5236308]
[1765896403149,8.15555187,128.16,128.12,7.80472719]
[1765896403452,8.15555187,128.17,128.13,8.52449684]
[1765896403643,8.15555187,128.16,128.12,0.72]
[1765896403950,8.15555187,128.16,128.12,8.52511583]
[1765896404151,8.15555187,128.17,128.13,8.52451681]
[1765896404336,8.15555187,128.17,128.14,0.72]
[1765896404837,8.15555187,128.17,128.13,8.52451681]
[1765896405248,8.15555187,128.17,128.14,0.72]
[1765896405552,8.15555187,128.17,128.13,7.80451681]
[1765896405722,8.15555187,128.15,128.1,8.15555187]
[1765896405923,8.15555187,128.17,128.13,8.15555187]
[1765896406120,7.80076787,128.2,128.15,8.52335544]
[1765896406352,8.15555187,128.2,128.16,0.72]
[1765896406774,24.49526462,128.21,128.17,0.72]
[1765896406934,8.54,128.21,128.18,0.72]
[1765896407120,8.54,128.21,128.15,36.12168896]
[1765896407121,8.15555187,128.2,128.16,0.72]
[1765896407319,8.15555187,128.19,128.16,0.72]
[1765896407555,8.54,128.21,128.18,0.72]
[1765896408333,24.49541269,128.21,128.18,0.72]
[1765896408531,24.49541269,128.21,128.17,8.52174436]
[1765896408726,24.49541269,128.21,128.17,7.80174436]
[1765896408926,8.54,128.21,128.19,0.72]
[1765896409330,8.15555187,128.23,128.19,0.72]
[1765896409843,8.54,128.24,128.21,0.72]
[1765896410239,8.54,128.24,128.22,0.72]
[1765896410646,8.86555187,128.23,128.18,7.8012996]
[1765896410833,8.15555187,128.22,128.18,7.8012996]
[1765896411033,8.15555187,128.23,128.19,0.72]
[1765896411227,8.54,128.24,128.2,8.15555187]
[1765896411455,16.33799237,128.24,128.2,15.95567245]
[1765896411631,8.54,128.24,128.21,8.51941769]
[1765896412143,25.20360822,128.24,128.2,7.80015222]
[1765896412454,25.20360822,128.24,128.2,0.72]
[1765896412655,24.49360822,128.24,128.2,0.72]
[1765896412861,8.15555187,128.23,128.2,0.72]
[1765896413065,24.49360822,128.24,128.2,0.72]
[1765896413242,17.04805635,128.24,128.19,7.80089555]
[1765896413445,8.15555187,128.23,128.19,16.67644742]
[1765896413765,25.20360822,128.24,128.2,0.72]
[1765896414562,8.54,128.24,128.21,0.72]
[1765896414860,8.54,128.24,128.22,0.72]
[1765896415034,24.49248752,128.26,128.22,0.72]
[1765896415233,25.20248752,128.26,128.22,0.72]
[1765896415433,8.54,128.28,128.24,0.72]
[1765896415662,43.96555981,128.28,128.23,8.14115186]
[1765896415842,44.67555981,128.28,128.23,8.86115186]
[1765896416185,24.47694117,128.28,128.24,8.86115186]
[1765896416370,24.47694117,128.28,128.24,16.65876642]
[1765896416537,8.54,128.28,128.25,8.86115186]
[1765896416736,8.54,128.28,128.25,0.72]
[1765896416936,8.54,128.28,128.24,8.51761456]
[1765896416937,24.47662799,128.28,128.24,8.51761456]
[1765896417131,43.96524663,128.28,128.23,15.93953694]
[1765896417337,25.18662799,128.28,128.24,7.79780414]
[1765896417563,24.47662799,128.28,128.24,8.51780414]
[1765896417760,8.54,128.28,128.24,15.938956]
[1765896418064,8.54,128.28,128.25,0.72]
[1765896418247,25.18561569,128.3,128.25,16.65795705]
[1765896418445,8.14115186,128.29,128.25,8.51680519]
[1765896418646,17.04446383,128.3,128.26,7.79662774]
[1765896418841,16.33429135,128.3,128.27,0.72]
[1765896419040,24.47544321,128.3,128.26,8.51662774]
[1765896419446,8.14115186,128.29,128.23,28.73524857]
[1765896419658,8.14115186,128.28,128.24,8.51742946]
[1765896419860,16.33429135,128.3,128.26,7.79660912]
[1765896420164,25.18544321,128.3,128.26,7.79660912]
[1765896420364,0.71,128.32,128.26,8.14115186]
[1765896420546,7.79126061,128.35,128.31,0.72]
[1765896420864,0.71,128.35,128.29,0.72]
[1765896421068,8.85115186,128.31,128.26,8.80994492]
[1765896421268,8.52,128.3,128.24,7.79771303]
[1765896421463,8.52,128.32,128.28,0.72]
[1765896421645,8.52,128.32,128.29,8.86115186]
[1765896421969,8.52,128.32,128.3,0.72]
[1765896422158,0.1,128.36,128.32,0.72]
[1765896422348,0.1,128.36,128.33,8.51241019]
[1765896422667,0.1,128.36,128.23,0.99999999]
[1765896422668,8.14115186,128.35,128.23,0.99999999]
[1765896422875,8.14115186,128.33,128.28,8.14115186]
[1765896423059,8.52,128.35,128.32,0.72]
[1765896423370,0.1,128.36,128.35,0.72]
[1765896423533,0.1,128.36,128.35,8.86115186]
[1765896423740,0.1,128.36,128.35,17.67109678]
[1765896424175,0.1,128.36,128.33,13.0470912]
[1765896424176,0.1,128.41,128.39,0.72]
[1765896424343,0.1,128.41,128.4,17.67109678]
[1765896424545,0.68,128.5,128.41,0.72]
[1765896424744,0.68,128.58,128.48,0.72]
[1765896425049,8.82115186,128.55,128.48,0.72]
[1765896425240,4.0453995,128.58,128.5,8.80994492]
[1765896425241,8.14115186,128.54,128.5,8.80994492]
[1765896425437,0.68,128.53,128.48,8.86115186]
[1765896425747,13.0470912,128.54,128.46,8.80994492]
[1765896425748,8.82115186,128.5,128.46,8.80994492]
[1765896425965,8.14115186,128.51,128.46,17.67109678]
[1765896426191,0.68,128.52,128.44,0.72]
[1765896426352,8.82115186,128.49,128.45,7.78494005]
[1765896426554,8.14115186,128.52,128.48,8.80994492]
[1765896426760,8.52,128.54,128.49,8.14115186]
[1765896426966,0.68,128.59,128.52,17.67109678]
[1765896427272,8.52,128.59,128.54,8.14115186]
[1765896427489,0.68,128.66,128.59,0.72]
[1765896427813,16.97067316,128.69,128.64,8.86115186]
[1765896428100,29.33776436,128.69,128.65,8.14115186]
[1765896428297,20.81776436,128.69,128.65,8.14115186]
[1765896428512,20.81776436,128.69,128.64,16.58314015]
[1765896428658,8.14115186,128.68,128.63,8.14115186]
[1765896428974,8.82115186,128.67,128.61,9.24]
[1765896429162,8.82115186,128.67,128.62,16.95109678]
[1765896429355,0.68,128.68,128.6,13.0470912]
[1765896429557,0.68,128.68,128.59,0.72]
[1765896429558,8.82115186,128.64,128.59,0.72]
[1765896429756,8.52,128.68,128.59,0.72]
[1765896429757,13.7270912,128.67,128.59,27.21815215]
[1765896430070,0.68,128.66,128.61,8.14115186]
[1765896430268,7.77423618,128.63,128.57,13.0470912]
[1765896430472,7.77423618,128.63,128.57,15.91882178]
[1765896430673,13.0470912,128.65,128.57,15.91882178]
[1765896430674,13.0470912,128.65,128.6,8.14115186]
[1765896430870,8.14115186,128.64,128.57,7.77766992]
[1765896431217,13.0470912,128.65,128.61,8.86115186]
[1765896431394,27.94986526,128.67,128.61,8.86115186]
[1765896431395,16.97194566,128.67,128.61,8.86115186]
[1765896431562,16.97194566,128.67,128.64,0.72]
[1765896431563,8.52,128.67,128.64,0.72]
[1765896431765,8.45000777,128.7,128.65,0.72]
[1765896431967,8.45000777,128.7,128.64,8.80994492]
[1765896431968,8.82115186,128.69,128.64,8.80994492]
[1765896432169,15.91115963,128.7,128.65,8.86115186]
[1765896432371,21.5670912,128.71,128.64,8.80994492]
[1765896432372,8.14115186,128.69,128.64,0.72]
[1765896432671,8.52,128.71,128.67,15.91293187]
[1765896432875,0.1,128.73,128.71,0.72]
[1765896433178,0.1,128.73,128.68,8.80994492]
[1765896433179,0.1,128.73,128.72,9.52994492]
[1765896433380,0.1,128.73,128.72,0.72]
[1765896433708,0.1,128.73,128.72,8.86115186]
[1765896433996,0.1,128.73,128.72,0.72]
[1765896434197,0.1,128.73,128.71,8.14115186]
[1765896434404,0.1,128.73,128.72,25.43989727]
[1765896434763,0.1,128.76,128.75,0.72]
[1765896434987,0.1,128.76,128.73,17.67109678]
[1765896435185,0.1,128.76,128.68,8.52]
[1765896435488,8.14115186,128.74,128.7,16.57948223]
[1765896435686,8.14115186,128.74,128.69,8.14115186]
[1765896435886,8.82115186,128.72,128.68,17.32994492]
[1765896436109,8.82115186,128.72,128.66,9.52994492]
[1765896436110,8.14115186,128.71,128.66,9.52994492]
[1765896436410,8.14115186,128.69,128.64,16.27314866]
[1765896436614,8.82115186,128.67,128.6,0.72]
[1765896436911,8.5,128.69,128.63,8.86115186]
[1765896437230,8.5,128.69,128.62,13.0470912]
[1765896437399,8.5,128.69,128.64,20.45710205]
[1765896437709,12.32715713,128.68,128.62,13.0470912]
[1765896437904,12.32715713,128.68,128.61,11.64715713]
[1765896437905,11.64715713,128.65,128.61,11.64715713]
[1765896438101,11.64715713,128.65,128.6,11.64715713]
[1765896438305,13.0470912,128.66,128.6,12.36715713]
[1765896438608,12.32715713,128.63,128.59,17.30994492]
[1765896438804,12.32715713,128.63,128.59,8.5]
[1765896439107,0.68,128.62,128.55,11.64715713]
[1765896439306,35.70771144,128.64,128.56,0.72]
[1765896439513,35.70771144,128.64,128.57,28.95480194]
[1765896439731,36.38771144,128.64,128.58,8.80994492]
[1765896439928,19.42039721,128.65,128.6,20.45710205]
[1765896440119,12.32715713,128.64,128.6,8.80994492]
[1765896440420,27.20580906,128.65,128.58,20.45710205]
[1765896440626,0.68,128.6,128.54,0.72]
[1765896440843,66.07094703,128.65,128.58,11.64715713]
[1765896440844,13.0470912,128.62,128.58,11.64715713]
[1765896440986,0.68,128.62,128.58,11.64715713]
[1765896441185,0.68,128.62,128.57,21.17710205]
[1765896441421,8.5,128.63,128.59,8.80994492]
[1765896441422,20.14715713,128.63,128.59,8.80994492]
[1765896441595,11.64715713,128.63,128.59,9.52994492]
[1765896441801,11.64715713,128.62,128.57,20.82479834]
[1765896441985,12.32715713,128.61,128.57,8.80994492]
[1765896442186,0.68,128.59,128.55,11.64715713]
[1765896442413,11.64715713,128.58,128.53,11.64715713]
[1765896442613,0.68,128.6,128.55,8.80994492]
[1765896442813,19.42379162,128.6,128.55,21.17710205]
[1765896443110,11.64715713,128.58,128.53,7.78019414]
[1765896443284,7.7761513,128.6,128.52,24.69424833]
[1765896443285,11.64715713,128.57,128.52,24.69424833]
[1765896443490,11.64715713,128.58,128.53,11.64715713]
[1765896443690,21.5032425,128.6,128.55,0.72]
[1765896443892,9.18,128.63,128.58,8.80994492]
[1765896444091,11.64715713,128.62,128.58,8.80994492]
[1765896444291,11.64715713,128.64,128.59,20.45710205]
[1765896444587,11.64715713,128.64,128.59,28.23354547]
[1765896444806,12.32715713,128.66,128.61,20.45710205]
[1765896445115,12.32715713,128.66,128.58,0.72]
[1765896445116,0.68,128.65,128.58,0.72]
[1765896445407,0.68,128.65,128.58,8.80994492]
[1765896445610,0.68,128.64,128.58,8.80994492]
[1765896445794,0.68,128.62,128.55,19.42573319]
[1765896446001,0.68,128.59,128.53,12.36715713]
[1765896446235,0.68,128.59,128.54,8.80994492]
[1765896446412,0.68,128.59,128.54,21.17710205]
[1765896446713,12.32715713,128.62,128.57,21.17710205]
[1765896446914,11.64715713,128.6,128.55,20.8261518]
[1765896447098,12.32715713,128.6,128.56,8.80994492]
[1765896447304,11.64715713,128.6,128.56,20.45710205]
[1765896447604,12.32715713,128.61,128.56,20.45710205]
[1765896447917,12.32715713,128.59,128.54,28.2366962]
[1765896448097,11.64715713,128.6,128.55,28.95604575]
[1765896448299,12.32715713,128.6,128.55,17.30888862]
[1765896448500,0.68,128.62,128.56,19.42521962]
[1765896448700,0.68,128.59,128.55,8.80994492]
[1765896448902,11.64715713,128.58,128.54,16.58916458]
[1765896449211,12.32715713,128.59,128.54,28.95632171]
[1765896449414,0.68,128.59,128.54,8.80994492]
[1765896449610,0.68,128.59,128.48,38.91588483]
[1765896449611,0.68,128.59,128.51,17.30994492]
[1765896449809,12.32715713,128.57,128.52,19.42785167]
[1765896449991,0.68,128.59,128.53,20.45710205]
[1765896450198,12.32715713,128.59,128.54,11.64715713]
[1765896450393,16.95376974,128.64,128.57,21.17710205]
[1765896450692,0.68,128.7,128.63,11.64715713]
[1765896450899,19.41898399,128.74,128.66,11.64715713]
[1765896450900,12.32715713,128.71,128.66,11.64715713]
[1765896451289,0.68,128.69,128.64,11.64715713]
[1765896451504,12.32715713,128.7,128.65,11.64715713]
[1765896451716,12.32715713,128.7,128.65,20.45710205]
[1765896451919,12.32715713,128.69,128.65,8.80994492]
[1765896452118,11.64715713,128.67,128.62,13.0470912]
[1765896452325,0.68,128.66,128.62,24.69424833]
[1765896452622,19.41904283,128.67,128.62,12.36715713]
[1765896452803,20.81788617,128.69,128.64,8.80994492]
[1765896453131,21.50771825,128.69,128.64,8.80994492]
[1765896453348,0.69,128.69,128.64,9.49994492]
[1765896453632,9.19,128.7,128.64,9.49994492]
[1765896453834,12.33715713,128.68,128.63,8.80994492]
[1765896454141,11.64715713,128.75,128.69,0.7]
[1765896454292,0.69,128.75,128.71,11.64715713]
[1765896454492,7.76731427,128.75,128.69,13.7470912]
[1765896454734,27.87478999,128.75,128.69,7.77017198]
[1765896454900,12.33715713,128.75,128.71,11.64715713]
[1765896455226,0.69,128.73,128.69,11.64715713]
[1765896455396,13.99150788,128.73,128.68,22.1114528]
[1765896455593,13.30150788,128.72,128.67,34.12023694]
[1765896455798,13.99150788,128.72,128.68,29.882625]
[1765896455998,0.69,128.72,128.68,16.58115688]
[1765896456200,8.45717431,128.75,128.7,7.7699537]
[1765896456523,8.6,128.76,128.73,7.768197]
[1765896456721,0.1,128.76,128.73,21.76970488]
[1765896457021,0.1,128.76,128.71,13.30150788]
[1765896457191,0.1,128.76,128.74,14.00150788]
[1765896457396,0.1,128.76,128.75,9.50994492]
[1765896457622,0.1,128.76,128.75,22.8114528]
[1765896458335,0.1,128.76,128.73,13.7470912]
[1765896458540,0.1,128.76,128.73,30.01482741]
[1765896458701,0.1,128.76,128.73,43.31633529]
[1765896458902,0.1,128.76,128.75,22.1114528]
[1765896459108,0.1,128.76,128.75,22.8114528]
[1765896459501,0.1,128.76,128.75,31.13101559]
[1765896459701,1e-08,128.76,128.75,43.47810679]
[1765896459909,1e-08,128.76,128.75,44.17810679]
[1765896460322,1e-08,128.76,128.75,21.93101559]
[1765896460505,1e-08,128.76,128.75,25.77693521]
[1765896460826,1e-08,128.76,128.75,51.94509708]
[1765896462002,1e-08,128.76,128.75,38.89800588]
[1765896462707,1e-08,128.79,128.78,8.80994492]
[1765896462907,1e-08,128.82,128.81,22.51703612]
[1765896463130,1e-08,128.82,128.81,44.13810679]
[1765896463924,1e-08,128.82,128.81,21.85703612]
[1765896464143,1e-08,128.82,128.81,30.35703612]
[1765896464424,0.66000001,128.82,128.78,13.12107067]
[1765896464631,0.66000001,128.82,128.77,8.5]
[1765896464851,0.68,128.8,128.76,13.12107067]
[1765896465062,13.80107067,128.78,128.72,8.5]
[1765896465214,0.68,128.76,128.71,8.5]
[1765896465524,13.0470912,128.79,128.72,20.88985756]
[1765896465714,13.80107067,128.79,128.73,0.69]
[1765896465913,0.68,128.76,128.72,7.76878689]
[1765896466351,0.68,128.74,128.66,0.69]
[1765896466534,0.68,128.73,128.69,20.89145639]
[1765896466714,19.41703867,128.76,128.7,13.12107067]
[1765896467035,13.12107067,128.75,128.69,17.30994492]
[1765896467215,0.68,128.74,128.67,13.12107067]
[1765896467415,0.68,128.74,128.7,8.80994492]
[1765896467917,0.68,128.72,128.68,8.80994492]
[1765896468242,13.80107067,128.72,128.68,8.80994492]
[1765896468443,0.68,128.7,128.67,8.80994492]
[1765896468663,13.12107067,128.68,128.64,16.27349736]
[1765896468820,21.57268189,128.68,128.64,8.5]
[1765896469228,0.68,128.66,128.61,13.12107067]
[1765896469530,0.68,128.67,128.63,13.12107067]
[1765896469728,13.80107067,128.66,128.63,8.80994492]
[1765896470060,13.12107067,128.67,128.63,7.77385232]
[1765896470274,0.68,128.66,128.63,16.58379724]
[1765896470453,0.68,128.66,128.64,7.77344789]
[1765896470760,13.83107067,128.66,128.62,16.5847026]
[1765896470957,0.71,128.66,128.62,16.5847026]
[1765896471335,13.12107067,128.67,128.62,36.02180413]
[1765896471548,7.77144128,128.68,128.62,29.70577327]
[1765896471841,13.12107067,128.68,128.64,8.80994492]
[1765896472015,13.83107067,128.66,128.63,8.80994492]
[1765896472216,13.83107067,128.66,128.62,8.80994492]
[1765896472478,13.12107067,128.65,128.61,8.80994492]
[1765896472630,13.0470912,128.62,128.55,7.77857471]
[1765896472978,0.71,128.62,128.57,13.12107067]
[1765896473244,0.71,128.62,128.55,27.94626043]
[1765896473245,13.12107067,128.59,128.56,8.80994492]
[1765896473425,0.69,128.6,128.55,7.77857471]
[1765896473620,13.12107067,128.61,128.56,13.82107067]
[1765896473816,13.81107067,128.61,128.57,8.80994492]
[1765896474124,13.0470912,128.57,128.48,0.7]
[1765896474343,0.69,128.6,128.52,0.7]
[1765896474651,13.12107067,128.6,128.54,13.0470912]
[1765896474850,13.12107067,128.6,128.56,7.77846919]
[1765896475021,20.89595064,128.62,128.57,8.80994492]
[1765896475225,7.7743568,128.63,128.57,8.80994492]
[1765896475421,13.12107067,128.66,128.61,9.52994492]
[1765896475633,13.79107067,128.66,128.61,9.52994492]
[1765896475844,8.44255157,128.66,128.61,9.52994492]
[1765896476038,13.12107067,128.63,128.57,0.72]
[1765896476366,13.79107067,128.64,128.6,8.80994492]
[1765896476724,13.79107067,128.61,128.57,16.58740017]
[1765896476920,0.67,128.59,128.56,7.77835324]
[1765896477225,0.67,128.59,128.57,7.77774061]
[1765896477452,13.79107067,128.59,128.57,7.77774061]
[1765896477761,0.67,128.57,128.52,19.45207516]
[1765896477970,13.12107067,128.56,128.53,7.78011184]
[1765896478125,13.79107067,128.56,128.53,7.78011184]
[1765896478323,13.12107067,128.58,128.54,8.80994492]
[1765896478722,9.17,128.59,128.55,27.22676001]
[1765896478923,22.29107067,128.59,128.55,27.22676001]
[1765896479332,13.12107067,128.58,128.55,27.22676001]
[1765896479534,9.17,128.59,128.55,27.22676001]
[1765896479535,21.62107067,128.59,128.55,27.22676001]
[1765896479725,13.7170912,128.62,128.56,9.52994492]
[1765896479930,13.12107067,128.61,128.56,9.52994492]
[1765896480127,13.79107067,128.62,128.56,22.65101559]
[1765896480322,0.67,128.66,128.6,8.80994492]
[1765896480527,13.12107067,128.64,128.59,21.5470912]
[1765896480757,0.67,128.66,128.6,8.80994492]
[1765896480962,13.12107067,128.66,128.6,22.65101559]
[1765896481129,7.77121541,128.68,128.51,0.72]
[1765896481130,0.67,128.6,128.51,0.72]
[1765896481459,0.67,128.6,128.54,22.57703612]
[1765896481625,8.5,128.63,128.58,7.77723307]
[1765896481822,0.67,128.66,128.59,8.80994492]
[1765896482021,8.5,128.67,128.6,13.84107067]
[1765896482225,13.12107067,128.66,128.61,9.52994492]
[1765896482457,0.67,128.66,128.61,9.52994492]
[1765896482663,13.12107067,128.65,128.6,0.72]
[1765896482828,13.12107067,128.64,128.61,7.77544514]
[1765896483161,13.12107067,128.67,128.62,18.02994492]
[1765896483330,13.12107067,128.7,128.64,21.93101559]
[1765896483534,13.12107067,128.7,128.63,13.0470912]
[1765896483535,13.12107067,128.72,128.68,8.80994492]
[1765896483744,13.12107067,128.69,128.65,8.80994492]
[1765896484064,13.80107067,128.69,128.64,22.2570912]
[1765896484238,13.12107067,128.65,128.61,27.214058]
[1765896484437,13.12107067,128.65,128.61,40.2611492]
[1765896484638,13.80107067,128.63,128.6,8.80994492]
[1765896484955,13.7270912,128.67,128.6,0.71]
[1765896485174,13.12107067,128.65,128.6,0.71]
[1765896485333,13.12107067,128.7,128.62,8.80994492]
[1765896485334,0.68,128.69,128.62,8.80994492]
[1765896485536,13.12107067,128.63,128.58,8.5]
[1765896485744,9.18,128.65,128.58,8.80994492]
[1765896485946,13.12107067,128.61,128.57,7.77786419]
[1765896486155,13.80107067,128.61,128.57,7.77786419]
[1765896486358,13.80107067,128.58,128.5,38.91008766]
[1765896486654,13.80107067,128.58,128.5,8.49210116]
[1765896486655,13.0470912,128.57,128.5,8.49210116]
[1765896486859,13.17169492,128.55,128.5,19.45525291]
[1765896487163,13.17169492,128.55,128.49,32.50282569]
[1765896487339,13.17169492,128.53,128.5,7.78191474]
[1765896487654,13.17169492,128.53,128.49,7.78251807]
[1765896487864,13.17169492,128.53,128.48,8.5]
[1765896488036,27.22265482,128.57,128.51,7.78136643]
[1765896488037,13.17169492,128.55,128.51,7.78136643]
[1765896488364,13.17169492,128.56,128.51,8.49121457]
[1765896488564,20.94903907,128.58,128.53,9.51994492]
[1765896488870,20.94975001,128.57,128.53,16.59001696]
[1765896489027,13.17169492,128.57,128.53,7.78007204]
[1765896489232,13.17169492,128.54,128.51,7.78142016]
[1765896489458,27.90267602,128.57,128.5,9.51994492]
[1765896489762,13.85169492,128.56,128.53,7.78024278]
[1765896489964,13.17169492,128.56,128.53,7.78024278]
[1765896490367,13.0470912,128.6,128.53,7.78024278]
[1765896490368,0.68,128.62,128.55,0.71]
[1765896490546,13.17169492,128.64,128.59,8.80994492]
[1765896490750,13.17169492,128.64,128.59,9.51994492]
[1765896490955,0.68,128.69,128.61,8.80994492]
[1765896491158,13.17169492,128.68,128.63,8.80994492]
[1765896491638,13.17169492,128.66,128.6,17.30994492]